[Event "Late-Titled-Tuesday-Blitz-June-04-2024"]
[Site "Chess.com"]
[Date "2024.06.04"]
[Round "7"]
[White "Abund"]
[Black "Szparu"]
[Result "0-1"]
[WhiteElo "2807"]
[BlackElo "2980"]
[TimeControl "180+1"]
[EndTime "15:17:48 PDT"]
[Termination "Szparu won by resignation"]

1. e4 {[%clk 0:03:00.9]} 1... c5 {[%clk 0:03:00.2]} 2. Nf3 {[%clk 0:03:01.1]}
2... a6 {[%clk 0:03:00.9]} 3. c3 {[%clk 0:03:00.9]} 3... e6 {[%clk 0:03:00.8]}
4. d4 {[%clk 0:03:00.2]} 4... d5 {[%clk 0:03:01.7]} 5. e5 {[%clk 0:02:55]} 5...
Bd7 {[%clk 0:03:01.4]} 6. Be2 {[%clk 0:02:48.2]} 6... cxd4 {[%clk 0:03:01.7]} 7.
cxd4 {[%clk 0:02:48.3]} 7... Bb5 {[%clk 0:03:02.3]} 8. Nc3 {[%clk 0:02:35.3]}
8... Bxe2 {[%clk 0:03:02.2]} 9. Nxe2 {[%clk 0:02:36.2]} 9... Nc6 {[%clk
0:03:03.1]} 10. O-O {[%clk 0:02:33.9]} 10... Rc8 {[%clk 0:03:03.4]} 11. Ng3
{[%clk 0:02:12.2]} 11... Nge7 {[%clk 0:03:02.1]} 12. Bg5 {[%clk 0:02:11.2]}
12... h6 {[%clk 0:03:01.6]} 13. Bxe7 {[%clk 0:02:09.9]} 13... Bxe7 {[%clk
0:02:58.5]} 14. Qb3 {[%clk 0:02:07.7]} 14... Na5 {[%clk 0:02:54.6]} 15. Qd3
{[%clk 0:02:04.5]} 15... Qb6 {[%clk 0:02:53.2]} 16. Rfc1 {[%clk 0:01:58.1]}
16... O-O {[%clk 0:02:50.3]} 17. Qe2 {[%clk 0:01:55.3]} 17... Qb5 {[%clk
0:02:38.3]} 18. Qxb5 {[%clk 0:01:44.5]} 18... axb5 {[%clk 0:02:39.2]} 19. Ne2
{[%clk 0:01:44.8]} 19... Nc4 {[%clk 0:02:27.4]} 20. Rc2 {[%clk 0:01:37.3]} 20...
Nxe5 {[%clk 0:02:23.6]} 21. Ne1 {[%clk 0:01:20.5]} 21... Rxc2 {[%clk 0:02:21.5]}
22. Nxc2 {[%clk 0:01:21.4]} 22... Nd3 {[%clk 0:02:19.5]} 23. Rd1 {[%clk
0:01:11.9]} 23... Rc8 {[%clk 0:02:10.9]} 24. Ne3 {[%clk 0:01:05.6]} 24... Nxb2
{[%clk 0:02:05.5]} 25. Rb1 {[%clk 0:01:05.7]} 25... Ba3 {[%clk 0:01:50.9]} 26.
g3 {[%clk 0:00:53.7]} 26... b4 {[%clk 0:01:50.9]} 27. Kg2 {[%clk 0:00:49.3]}
27... Rc6 {[%clk 0:01:50.2]} 28. h4 {[%clk 0:00:49.4]} 28... Na4 {[%clk
0:01:50.1]} 29. Rb3 {[%clk 0:00:43.8]} 29... b6 {[%clk 0:01:48.9]} 30. Kf1
{[%clk 0:00:41.5]} 30... Kf8 {[%clk 0:01:47.1]} 31. Ke1 {[%clk 0:00:41.8]} 31...
Ke7 {[%clk 0:01:47]} 32. Kd2 {[%clk 0:00:40.3]} 32... Kd6 {[%clk 0:01:42.6]} 33.
Nc2 {[%clk 0:00:40.3]} 33... Nb2 {[%clk 0:01:20.9]} 34. Nxb4 {[%clk 0:00:37.8]}
34... Nc4+ {[%clk 0:01:20.8]} 35. Kd3 {[%clk 0:00:32.7]} 35... Bxb4 {[%clk
0:01:19.3]} 36. Rxb4 {[%clk 0:00:33]} 36... Rc8 {[%clk 0:01:19.9]} 37. Nc3
{[%clk 0:00:29.1]} 37... Ra8 {[%clk 0:01:19.2]} 38. a4 {[%clk 0:00:26.7]} 38...
g5 {[%clk 0:01:18.8]} 39. hxg5 {[%clk 0:00:19.8]} 39... hxg5 {[%clk 0:01:19.7]}
40. Rb1 {[%clk 0:00:19.4]} 40... Rh8 {[%clk 0:01:19]} 41. Ke2 {[%clk 0:00:16.3]}
41... f5 {[%clk 0:01:16.6]} 42. Nb5+ {[%clk 0:00:10.6]} 42... Kc6 {[%clk
0:01:16]} 43. Nc3 {[%clk 0:00:11]} 43... g4 {[%clk 0:01:10.7]} 44. Re1 {[%clk
0:00:10.3]} 44... Rh2 {[%clk 0:01:05.4]} 45. Rb1 {[%clk 0:00:09.8]} 45... Nd6
{[%clk 0:01:03.8]} 46. Ke3 {[%clk 0:00:09.3]} 46... Nc4+ {[%clk 0:00:55.4]} 47.
Ke2 {[%clk 0:00:09.5]} 47... e5 {[%clk 0:00:55.9]} 48. dxe5 {[%clk 0:00:09.5]}
48... Nxe5 {[%clk 0:00:20.4]} 49. Rd1 {[%clk 0:00:09.8]} 49... Nf3 {[%clk
0:00:21]} 50. Nxd5 {[%clk 0:00:07.5]} 50... Rh7 {[%clk 0:00:15.8]} 51. Ne3
{[%clk 0:00:07.3]} 51... Re7 {[%clk 0:00:15]} 52. Rc1+ {[%clk 0:00:04.7]} 52...
Kd6 {[%clk 0:00:14.2]} 53. Kf1 {[%clk 0:00:03]} 53... Rf7 {[%clk 0:00:13.9]} 54.
Rc2 {[%clk 0:00:02.6]} 54... Ke5 {[%clk 0:00:11.4]} 55. Rb2 {[%clk 0:00:02.7]}
55... Rh7 {[%clk 0:00:10.7]} 56. Rb5+ {[%clk 0:00:03.1]} 56... Ke4 {[%clk
0:00:10.6]} 57. Ke2 {[%clk 0:00:01.6]} 57... Nd4+ {[%clk 0:00:10]} 58. Kd2
{[%clk 0:00:01.4]} 58... Nxb5 {[%clk 0:00:10.9]} 59. axb5 {[%clk 0:00:01.9]}
59... Rc7 {[%clk 0:00:11.1]} 60. Ke2 {[%clk 0:00:01.2]} 60... Rc5 {[%clk
0:00:11.2]} 61. Kd2 {[%clk 0:00:01.3]} 61... Rxb5 {[%clk 0:00:11.3]} 62. Nc4
{[%clk 0:00:01.9]} 62... Kf3 {[%clk 0:00:08.8]} 63. Ke1 {[%clk 0:00:01.7]} 63...
Rb1+ {[%clk 0:00:06.5]} 64. Kd2 {[%clk 0:00:02.2]} 64... Kxf2 {[%clk 0:00:06.8]}
65. Nd6 {[%clk 0:00:02]} 65... Kxg3 {[%clk 0:00:05.8]} 66. Nxf5+ {[%clk
0:00:02.6]} 66... Kf2 {[%clk 0:00:05.9]} 67. Ne3 {[%clk 0:00:02.2]} 67... g3
{[%clk 0:00:06.2]} 68. Ng4+ {[%clk 0:00:02.6]} 68... Kg1 {[%clk 0:00:05.6]} 69.
Kc2 {[%clk 0:00:02.4]} 69... Ra1 {[%clk 0:00:05.3]} 70. Kb2 {[%clk 0:00:02.7]}
70... Re1 {[%clk 0:00:04.6]} 71. Kc2 {[%clk 0:00:02.7]} 71... g2 {[%clk
0:00:04.9]} 72. Kd2 {[%clk 0:00:03.3]} 72... Re4 {[%clk 0:00:04.3]} 73. Nf6
{[%clk 0:00:03.6]} 73... Re6 {[%clk 0:00:04.5]} 74. Nh5 {[%clk 0:00:03.2]} 74...
Kf2 {[%clk 0:00:03.7]} 75. Nf4 {[%clk 0:00:03.8]} 75... Rd6+ {[%clk 0:00:04]}
76. Kc3 {[%clk 0:00:03.8]} 76... g1=Q {[%clk 0:00:04.6]} 77. Nh3+ {[%clk
0:00:04.3]} 77... Kg2 {[%clk 0:00:04.9]} 78. Nxg1 {[%clk 0:00:05]} 78... Kxg1
{[%clk 0:00:05.8]} 79. Kc4 {[%clk 0:00:05.8]} 79... Kf2 {[%clk 0:00:06.7]} 80.
Kb5 {[%clk 0:00:06.6]} 80... Kf3 {[%clk 0:00:07.4]} 81. Ka6 {[%clk 0:00:07.5]}
81... Ke4 {[%clk 0:00:08.1]} 82. Kb7 {[%clk 0:00:08.4]} 82... Kd5 {[%clk
0:00:08.5]} 83. Kc7 {[%clk 0:00:09.3]} 83... Kc5 {[%clk 0:00:08.3]} 84. Kb7
{[%clk 0:00:09.6]} 84... b5 {[%clk 0:00:08.9]} 85. Ka7 {[%clk 0:00:09.8]} 85...
b4 {[%clk 0:00:09.5]} 86. Ka8 {[%clk 0:00:10.3]} 86... b3 {[%clk 0:00:10.2]} 0-1

[Event "Late-Titled-Tuesday-Blitz-June-04-2024"]
[Site "Chess.com"]
[Date "2024.06.04"]
[Round "7"]
[White "Bond_7_7_7"]
[Black "traviscottofficial"]
[Result "0-1"]
[WhiteElo "2451"]
[BlackElo "2687"]
[TimeControl "180+1"]
[EndTime "15:18:06 PDT"]
[Termination "traviscottofficial won by resignation"]

1. e4 {[%clk 0:02:09.9]} 1... e5 {[%clk 0:02:55.6]} 2. Nf3 {[%clk 0:02:08.3]}
2... Nf6 {[%clk 0:02:55.6]} 3. Nc3 {[%clk 0:02:06.6]} 3... Nc6 {[%clk
0:02:55.3]} 4. a3 {[%clk 0:02:05.8]} 4... a6 {[%clk 0:02:52.7]} 5. d4 {[%clk
0:02:04.2]} 5... exd4 {[%clk 0:02:50.8]} 6. Nxd4 {[%clk 0:02:04.8]} 6... Bc5
{[%clk 0:02:40.2]} 7. Nxc6 {[%clk 0:02:01.7]} 7... dxc6 {[%clk 0:02:39.8]} 8.
Qxd8+ {[%clk 0:02:00.9]} 8... Kxd8 {[%clk 0:02:40.7]} 9. Bg5 {[%clk 0:01:57]}
9... Ke8 {[%clk 0:02:31.9]} 10. Bd3 {[%clk 0:01:49.4]} 10... Be6 {[%clk
0:02:29.6]} 11. h3 {[%clk 0:01:25.7]} 11... Nd7 {[%clk 0:02:20.8]} 12. f4 {[%clk
0:01:04.6]} 12... f6 {[%clk 0:02:06.6]} 13. Bh4 {[%clk 0:01:05.1]} 13... Bd6
{[%clk 0:01:56.3]} 14. Rf1 {[%clk 0:01:03.5]} 14... Rg8 {[%clk 0:01:39.9]} 15.
O-O-O {[%clk 0:01:03]} 15... Bxf4+ {[%clk 0:01:36.6]} 16. Rxf4 {[%clk
0:01:02.3]} 16... g5 {[%clk 0:01:37.3]} 17. Bxg5 {[%clk 0:01:02.9]} 17... fxg5
{[%clk 0:01:27.6]} 18. Rf2 {[%clk 0:01:01.7]} 18... Ne5 {[%clk 0:01:27.9]} 19.
Rdf1 {[%clk 0:01:00.8]} 19... Ke7 {[%clk 0:01:26.8]} 20. Be2 {[%clk 0:00:46.4]}
20... Raf8 {[%clk 0:01:25]} 21. Rxf8 {[%clk 0:00:42.3]} 21... Rxf8 {[%clk
0:01:25.9]} 22. Rxf8 {[%clk 0:00:39.9]} 22... Kxf8 {[%clk 0:01:26.8]} 23. Na4
{[%clk 0:00:38]} 23... Nd7 {[%clk 0:01:21.4]} 24. Kd2 {[%clk 0:00:37.1]} 24...
Ke7 {[%clk 0:01:21.3]} 25. Ke3 {[%clk 0:00:36.8]} 25... Kd6 {[%clk 0:01:20.6]}
26. b3 {[%clk 0:00:33.5]} 26... c5 {[%clk 0:01:06]} 27. Nb2 {[%clk 0:00:34]}
27... Ne5 {[%clk 0:01:01.5]} 28. a4 {[%clk 0:00:33.5]} 28... Nc6 {[%clk
0:00:58]} 29. Nd3 {[%clk 0:00:32.4]} 29... Nd4 {[%clk 0:00:56]} 30. Bd1 {[%clk
0:00:32.9]} 30... b6 {[%clk 0:00:53.9]} 31. b4 {[%clk 0:00:31.3]} 31... Bd7
{[%clk 0:00:33]} 32. c3 {[%clk 0:00:29.6]} 32... Ne6 {[%clk 0:00:29.9]} 33. e5+
{[%clk 0:00:29.3]} 33... Kd5 {[%clk 0:00:28]} 34. Kd2 {[%clk 0:00:20.7]} 34...
cxb4 {[%clk 0:00:20.1]} 35. Nxb4+ {[%clk 0:00:18.9]} 35... Kxe5 {[%clk
0:00:20.5]} 36. Nxa6 {[%clk 0:00:19.5]} 36... c5 {[%clk 0:00:20.6]} 37. Nb8
{[%clk 0:00:17.1]} 37... Be8 {[%clk 0:00:19.4]} 38. Na6 {[%clk 0:00:14.4]} 38...
Bc6 {[%clk 0:00:19.2]} 39. g3 {[%clk 0:00:13.2]} 39... Ng7 {[%clk 0:00:18.5]}
40. Nb8 {[%clk 0:00:12.4]} 40... Be8 {[%clk 0:00:18]} 41. Bf3 {[%clk 0:00:09.5]}
41... Nf5 {[%clk 0:00:18.1]} 42. g4 {[%clk 0:00:09.1]} 42... Nd6 {[%clk
0:00:17.9]} 43. Bc6 {[%clk 0:00:09.7]} 43... Nc4+ {[%clk 0:00:16.8]} 44. Kd3
{[%clk 0:00:09]} 44... Bf7 {[%clk 0:00:13]} 45. Bb5 {[%clk 0:00:08.2]} 45... Nd6
{[%clk 0:00:11.6]} 46. Nd7+ {[%clk 0:00:06.1]} 46... Kf4 {[%clk 0:00:12.3]} 47.
Nxb6 {[%clk 0:00:06.4]} 47... Nb7 {[%clk 0:00:08.3]} 48. Bc6 {[%clk 0:00:05]}
48... Na5 {[%clk 0:00:08.2]} 49. Nd5+ {[%clk 0:00:05.2]} 49... Kg3 {[%clk
0:00:07.7]} 50. Ne7 {[%clk 0:00:04.4]} 50... Kxh3 {[%clk 0:00:07.4]} 51. Bf3
{[%clk 0:00:04.6]} 51... Kg3 {[%clk 0:00:07.7]} 52. Ke3 {[%clk 0:00:05.2]} 52...
Nc4+ {[%clk 0:00:06.2]} 53. Ke2 {[%clk 0:00:04.2]} 53... Na5 {[%clk 0:00:06.6]}
54. Nf5+ {[%clk 0:00:04.5]} 54... Kf4 {[%clk 0:00:06.6]} 55. Nd6 {[%clk
0:00:04.8]} 55... Be6 {[%clk 0:00:07]} 56. Be4 {[%clk 0:00:03.8]} 56... Bxg4+
{[%clk 0:00:07]} 57. Kf2 {[%clk 0:00:04.3]} 57... h5 {[%clk 0:00:07.9]} 58. Nb7
{[%clk 0:00:03.8]} 58... Kxe4 {[%clk 0:00:03.7]} 59. Nxa5 {[%clk 0:00:03.4]}
59... Bd7 {[%clk 0:00:04.3]} 60. Nb7 {[%clk 0:00:03.3]} 60... Kd5 {[%clk
0:00:04.1]} 61. a5 {[%clk 0:00:03]} 61... Kc6 {[%clk 0:00:04.7]} 62. a6 {[%clk
0:00:03.2]} 62... Bc8 {[%clk 0:00:04.8]} 63. Nd8+ {[%clk 0:00:03.1]} 63... Kb6
{[%clk 0:00:02.8]} 64. Nf7 {[%clk 0:00:03.3]} 64... g4 {[%clk 0:00:03.1]} 65.
Nd6 {[%clk 0:00:03.6]} 65... Be6 {[%clk 0:00:02.6]} 66. Ne4 {[%clk 0:00:03.6]}
66... c4 {[%clk 0:00:02.3]} 67. Nf6 {[%clk 0:00:03.7]} 67... Kxa6 {[%clk
0:00:02.4]} 68. Nxh5 {[%clk 0:00:03.5]} 68... Kb5 {[%clk 0:00:02.5]} 69. Kg3
{[%clk 0:00:03.5]} 69... Ka4 {[%clk 0:00:02.7]} 70. Nf4 {[%clk 0:00:03.9]} 70...
Bf5 {[%clk 0:00:03.1]} 71. Ne2 {[%clk 0:00:04]} 71... Ka3 {[%clk 0:00:03.3]} 72.
Nd4 {[%clk 0:00:04]} 72... Bd7 {[%clk 0:00:04]} 73. Kf4 {[%clk 0:00:02.5]} 73...
Kb2 {[%clk 0:00:04.6]} 74. Ne2 {[%clk 0:00:02.4]} 74... Kc2 {[%clk 0:00:05.2]}
75. Ke3 {[%clk 0:00:02.8]} 75... Bc8 {[%clk 0:00:04.1]} 76. Kd4 {[%clk
0:00:03.3]} 76... Kd2 {[%clk 0:00:03.5]} 77. Nf4 {[%clk 0:00:04]} 77... g3
{[%clk 0:00:03.3]} 78. Kxc4 {[%clk 0:00:04.1]} 78... Ke3 {[%clk 0:00:04]} 79.
Ng2+ {[%clk 0:00:03.8]} 79... Kf3 {[%clk 0:00:04.6]} 80. Nh4+ {[%clk 0:00:04.3]}
80... Kf2 {[%clk 0:00:04.2]} 81. Kd3 {[%clk 0:00:03.9]} 81... Ba6+ {[%clk
0:00:03.4]} 82. c4 {[%clk 0:00:04.3]} 82... Kg1 {[%clk 0:00:02.9]} 83. Kc3
{[%clk 0:00:02.8]} 83... Kh2 {[%clk 0:00:03.1]} 84. c5 {[%clk 0:00:02.7]} 84...
Bb7 {[%clk 0:00:03.6]} 85. Kb4 {[%clk 0:00:01.8]} 85... Kh3 {[%clk 0:00:04.1]}
86. Nf5 {[%clk 0:00:01]} 86... g2 {[%clk 0:00:04.1]} 87. Nd4 {[%clk 0:00:01.2]}
87... g1=Q {[%clk 0:00:04.3]} 88. c6 {[%clk 0:00:01.9]} 88... Qxd4+ {[%clk
0:00:04.6]} 89. Kb5 {[%clk 0:00:02.5]} 89... Qd5+ {[%clk 0:00:04.9]} 0-1

[Event "Late-Titled-Tuesday-Blitz-June-04-2024"]
[Site "Chess.com"]
[Date "2024.06.04"]
[Round "7"]
[White "xasid81"]
[Black "EsmeraldasAnderson03"]
[Result "1/2-1/2"]
[WhiteElo "2627"]
[BlackElo "2470"]
[TimeControl "180+1"]
[EndTime "15:18:08 PDT"]
[Termination "Game drawn - insufficient material"]

1. e4 {[%clk 0:02:59.9]} 1... c5 {[%clk 0:02:59.6]} 2. Nf3 {[%clk 0:02:59.6]}
2... d6 {[%clk 0:03:00.2]} 3. c3 {[%clk 0:02:59.6]} 3... Nf6 {[%clk 0:03:00.5]}
4. Bd3 {[%clk 0:02:58.6]} 4... Bg4 {[%clk 0:02:56.3]} 5. h3 {[%clk 0:02:57.9]}
5... Bh5 {[%clk 0:02:55.8]} 6. O-O {[%clk 0:02:57.6]} 6... Nc6 {[%clk
0:02:55.7]} 7. Bc2 {[%clk 0:02:58]} 7... e6 {[%clk 0:02:55.8]} 8. d3 {[%clk
0:02:58.6]} 8... Be7 {[%clk 0:02:55.8]} 9. Re1 {[%clk 0:02:59.2]} 9... O-O
{[%clk 0:02:56.2]} 10. Nbd2 {[%clk 0:02:59.8]} 10... Rc8 {[%clk 0:02:55.6]} 11.
Nf1 {[%clk 0:03:00.3]} 11... b5 {[%clk 0:02:54.9]} 12. Ng3 {[%clk 0:03:00.6]}
12... Bg6 {[%clk 0:02:54.4]} 13. Bf4 {[%clk 0:02:59.3]} 13... b4 {[%clk
0:02:54.4]} 14. Qd2 {[%clk 0:02:58.8]} 14... bxc3 {[%clk 0:02:52.5]} 15. bxc3
{[%clk 0:02:59.7]} 15... Qa5 {[%clk 0:02:52.6]} 16. Bb3 {[%clk 0:02:57.1]} 16...
Rfd8 {[%clk 0:02:48]} 17. Red1 {[%clk 0:02:56.7]} 17... d5 {[%clk 0:02:46.1]}
18. e5 {[%clk 0:02:52.3]} 18... Nh5 {[%clk 0:02:43]} 19. Nxh5 {[%clk 0:02:51.5]}
19... Bxh5 {[%clk 0:02:43.9]} 20. g4 {[%clk 0:02:52]} 20... Bg6 {[%clk
0:02:43.7]} 21. d4 {[%clk 0:02:51.8]} 21... cxd4 {[%clk 0:02:39.5]} 22. cxd4
{[%clk 0:02:51.8]} 22... Qxd2 {[%clk 0:02:38.4]} 23. Bxd2 {[%clk 0:02:51.7]}
23... Be4 {[%clk 0:02:27.4]} 24. Ng5 {[%clk 0:02:51.7]} 24... Nxd4 {[%clk
0:02:25.3]} 25. Nxe4 {[%clk 0:02:51.8]} 25... Nxb3 {[%clk 0:02:22.5]} 26. axb3
{[%clk 0:02:49.1]} 26... dxe4 {[%clk 0:02:22.8]} 27. Be3 {[%clk 0:02:45.7]}
27... Rxd1+ {[%clk 0:02:17.3]} 28. Rxd1 {[%clk 0:02:46.6]} 28... a5 {[%clk
0:02:09.1]} 29. Rd7 {[%clk 0:02:43.4]} 29... Bb4 {[%clk 0:02:05.1]} 30. Rd4
{[%clk 0:02:40.8]} 30... h6 {[%clk 0:02:02.5]} 31. Rxe4 {[%clk 0:02:40.5]} 31...
Rc3 {[%clk 0:02:03.1]} 32. Rd4 {[%clk 0:02:34]} 32... Rxb3 {[%clk 0:02:02.3]}
33. Rd8+ {[%clk 0:02:33.8]} 33... Kh7 {[%clk 0:02:02.6]} 34. Rd7 {[%clk
0:02:32.3]} 34... a4 {[%clk 0:01:22.5]} 35. Rxf7 {[%clk 0:02:29.9]} 35... a3
{[%clk 0:01:22.6]} 36. Ra7 {[%clk 0:02:29.4]} 36... Bc3 {[%clk 0:01:14.5]} 37.
Bc5 {[%clk 0:02:22.1]} 37... Bb2 {[%clk 0:01:13.8]} 38. Kg2 {[%clk 0:02:09.6]}
38... Bxe5 {[%clk 0:00:51.3]} 39. Bxa3 {[%clk 0:02:06.1]} 39... Bd4 {[%clk
0:00:48.2]} 40. Ra4 {[%clk 0:02:04.9]} 40... e5 {[%clk 0:00:45.6]} 41. f4 {[%clk
0:01:55.5]} 41... exf4 {[%clk 0:00:35.5]} 42. Rxd4 {[%clk 0:01:53.4]} 42... f3+
{[%clk 0:00:35]} 43. Kf2 {[%clk 0:01:50.1]} 43... Rxa3 {[%clk 0:00:35.9]} 44. h4
{[%clk 0:01:48.7]} 44... Kg6 {[%clk 0:00:27.1]} 45. Rd6+ {[%clk 0:01:48.2]}
45... Kf7 {[%clk 0:00:27]} 46. h5 {[%clk 0:01:47.4]} 46... Ke7 {[%clk
0:00:26.2]} 47. Rg6 {[%clk 0:01:45.4]} 47... Kf7 {[%clk 0:00:26.7]} 48. Rb6
{[%clk 0:01:44.9]} 48... Rc3 {[%clk 0:00:25.7]} 49. Rd6 {[%clk 0:01:42.4]} 49...
Rb3 {[%clk 0:00:25.1]} 50. Kg3 {[%clk 0:01:41.8]} 50... Ra3 {[%clk 0:00:24.5]}
51. Rd4 {[%clk 0:01:41.7]} 51... f2+ {[%clk 0:00:15.8]} 52. Kxf2 {[%clk
0:01:41.5]} 52... Kf6 {[%clk 0:00:16.5]} 53. Rd6+ {[%clk 0:01:39.6]} 53... Kf7
{[%clk 0:00:16.3]} 54. Kg2 {[%clk 0:01:38.1]} 54... Ke7 {[%clk 0:00:16.3]} 55.
Rd4 {[%clk 0:01:37.1]} 55... Kf6 {[%clk 0:00:16.2]} 56. Rd6+ {[%clk 0:01:34.2]}
56... Kf7 {[%clk 0:00:16.4]} 57. Rb6 {[%clk 0:01:32.8]} 57... Rc3 {[%clk
0:00:16.5]} 58. Rb5 {[%clk 0:01:29]} 58... Kf6 {[%clk 0:00:15.7]} 59. Rf5+
{[%clk 0:01:29]} 59... Ke6 {[%clk 0:00:15.8]} 60. Rf4 {[%clk 0:01:26.5]} 60...
Ra3 {[%clk 0:00:14.4]} 61. Kf2 {[%clk 0:01:25.7]} 61... Rb3 {[%clk 0:00:14.6]}
62. Rf8 {[%clk 0:01:23.3]} 62... Ke7 {[%clk 0:00:13]} 63. Rf3 {[%clk 0:01:22.5]}
63... Rb2+ {[%clk 0:00:13.4]} 64. Kg3 {[%clk 0:01:22.7]} 64... Ke6 {[%clk
0:00:12.7]} 65. Ra3 {[%clk 0:01:20.3]} 65... Kf6 {[%clk 0:00:10.2]} 66. Ra6+
{[%clk 0:01:19.6]} 66... Kf7 {[%clk 0:00:10.3]} 67. Ra4 {[%clk 0:01:19.1]} 67...
Rb1 {[%clk 0:00:08]} 68. Kf3 {[%clk 0:01:17.5]} 68... Rf1+ {[%clk 0:00:07.3]}
69. Kg2 {[%clk 0:01:17.9]} 69... Rf6 {[%clk 0:00:07.6]} 70. Kg3 {[%clk
0:01:17.9]} 70... Re6 {[%clk 0:00:07.6]} 71. Rf4+ {[%clk 0:01:16]} 71... Ke7
{[%clk 0:00:08.2]} 72. Kf3 {[%clk 0:01:15.3]} 72... Ra6 {[%clk 0:00:04.2]} 73.
Rb4 {[%clk 0:01:13.7]} 73... Rf6+ {[%clk 0:00:03.9]} 74. Ke4 {[%clk 0:01:13.5]}
74... Re6+ {[%clk 0:00:03.9]} 75. Kd5 {[%clk 0:01:11.8]} 75... Re1 {[%clk
0:00:03]} 76. Rb7+ {[%clk 0:01:04.8]} 76... Kf6 {[%clk 0:00:03.3]} 77. Rb6+
{[%clk 0:01:04.7]} 77... Kf7 {[%clk 0:00:03.9]} 78. Rb4 {[%clk 0:01:01.8]} 78...
Kf6 {[%clk 0:00:03.4]} 79. Rb6+ {[%clk 0:00:58.8]} 79... Kf7 {[%clk 0:00:03.2]}
80. Rc6 {[%clk 0:00:58.6]} 80... Re2 {[%clk 0:00:02.5]} 81. Rc4 {[%clk
0:00:56.8]} 81... Re3 {[%clk 0:00:02.6]} 82. Rf4+ {[%clk 0:00:56]} 82... Ke7
{[%clk 0:00:02.7]} 83. Kd4 {[%clk 0:00:50.5]} 83... Re1 {[%clk 0:00:02.9]} 84.
Kd3 {[%clk 0:00:49.8]} 84... Ke6 {[%clk 0:00:03]} 85. Rf8 {[%clk 0:00:49.1]}
85... Re5 {[%clk 0:00:03]} 86. Kd4 {[%clk 0:00:48.3]} 86... Rg5 {[%clk
0:00:01.3]} 87. Rf4 {[%clk 0:00:48.4]} 87... Ke7 {[%clk 0:00:02]} 88. Ke4 {[%clk
0:00:48.8]} 88... Ke6 {[%clk 0:00:02.9]} 89. Kf3 {[%clk 0:00:48.8]} 89... Ke7
{[%clk 0:00:02.5]} 90. Rf5 {[%clk 0:00:43.8]} 90... Ke6 {[%clk 0:00:01]} 91.
Rxg5 {[%clk 0:00:43.2]} 91... hxg5 {[%clk 0:00:01.9]} 92. Ke4 {[%clk 0:00:43.3]}
92... Kf6 {[%clk 0:00:02.8]} 93. Kd5 {[%clk 0:00:43.3]} 93... g6 {[%clk
0:00:01.2]} 94. h6 {[%clk 0:00:36]} 94... Kf7 {[%clk 0:00:01.5]} 95. Kd6 {[%clk
0:00:35.4]} 95... Kg8 {[%clk 0:00:01.7]} 96. Ke6 {[%clk 0:00:35.6]} 96... Kh7
{[%clk 0:00:02.6]} 97. Kf7 {[%clk 0:00:34]} 97... Kxh6 {[%clk 0:00:03.5]} 98.
Kf6 {[%clk 0:00:34.5]} 98... Kh7 {[%clk 0:00:03.9]} 99. Kf7 {[%clk 0:00:33.8]}
99... Kh6 {[%clk 0:00:04.3]} 100. Kf6 {[%clk 0:00:32.5]} 100... Kh7 {[%clk
0:00:04.9]} 101. Kxg5 {[%clk 0:00:33.4]} 101... Kg7 {[%clk 0:00:05.5]} 102. Kf4
{[%clk 0:00:33.8]} 102... Kf6 {[%clk 0:00:06.2]} 103. Ke4 {[%clk 0:00:34.4]}
103... Kg5 {[%clk 0:00:06.4]} 104. Kf3 {[%clk 0:00:35]} 104... Kh4 {[%clk
0:00:07.1]} 105. Kf4 {[%clk 0:00:32.7]} 105... Kh3 {[%clk 0:00:06.3]} 106. Kg5
{[%clk 0:00:30.3]} 106... Kg3 {[%clk 0:00:06.5]} 107. Kf6 {[%clk 0:00:30]}
107... Kxg4 {[%clk 0:00:05.9]} 108. Kxg6 {[%clk 0:00:30.6]} 1/2-1/2

[Event "Late-Titled-Tuesday-Blitz-June-04-2024"]
[Site "Chess.com"]
[Date "2024.06.04"]
[Round "8"]
[White "tactic"]
[Black "rikchessmx"]
[Result "1-0"]
[WhiteElo "2549"]
[BlackElo "2343"]
[TimeControl "180+1"]
[EndTime "15:22:55 PDT"]
[Termination "tactic won by resignation"]

1. Nf3 {[%clk 0:03:00.9]} 1... Nf6 {[%clk 0:02:55.5]} 2. g3 {[%clk 0:02:58.4]}
2... e6 {[%clk 0:02:55.4]} 3. Bg2 {[%clk 0:02:59.1]} 3... d5 {[%clk 0:02:55.4]}
4. O-O {[%clk 0:02:59.7]} 4... c6 {[%clk 0:02:52.4]} 5. d4 {[%clk 0:02:58.6]}
5... Nbd7 {[%clk 0:02:52.5]} 6. c4 {[%clk 0:02:58.1]} 6... dxc4 {[%clk
0:02:51.8]} 7. a4 {[%clk 0:02:53.1]} 7... b5 {[%clk 0:02:47.9]} 8. Ne5 {[%clk
0:02:31.6]} 8... Nxe5 {[%clk 0:02:45]} 9. dxe5 {[%clk 0:02:32.5]} 9... Qxd1
{[%clk 0:02:44.3]} 10. Rxd1 {[%clk 0:02:32.1]} 10... Nd5 {[%clk 0:02:44.3]} 11.
axb5 {[%clk 0:02:18.9]} 11... cxb5 {[%clk 0:02:43.6]} 12. Nc3 {[%clk 0:02:19.4]}
12... Bb7 {[%clk 0:02:38.5]} 13. Nxb5 {[%clk 0:02:17.4]} 13... Bc5 {[%clk
0:02:31.5]} 14. e4 {[%clk 0:01:59.7]} 14... Nb4 {[%clk 0:02:27.4]} 15. Nc7+
{[%clk 0:01:59.7]} 15... Ke7 {[%clk 0:02:24.5]} 16. Nxa8 {[%clk 0:02:00.6]}
16... Rxa8 {[%clk 0:02:23.1]} 17. Bg5+ {[%clk 0:01:59.1]} 17... f6 {[%clk
0:02:22.4]} 18. exf6+ {[%clk 0:01:48.8]} 18... gxf6 {[%clk 0:02:23.3]} 19. Be3
{[%clk 0:01:49.1]} 19... Bxe3 {[%clk 0:02:22.9]} 20. fxe3 {[%clk 0:01:50]} 20...
Nd3 {[%clk 0:02:21.5]} 21. b3 {[%clk 0:01:41.2]} 21... Nb2 {[%clk 0:02:15.5]}
22. Rdc1 {[%clk 0:01:36.7]} 22... a5 {[%clk 0:02:03.3]} 23. Ra2 {[%clk
0:01:34.4]} 23... Nd3 {[%clk 0:01:58.8]} 24. Rxc4 {[%clk 0:01:34.5]} 24... Kd7
{[%clk 0:01:53.8]} 25. Rd2 {[%clk 0:01:34.1]} 1-0

[Event "Late-Titled-Tuesday-Blitz-June-04-2024"]
[Site "Chess.com"]
[Date "2024.06.04"]
[Round "8"]
[White "KVAIDAN"]
[Black "katharinareinecke"]
[Result "1-0"]
[WhiteElo "2352"]
[BlackElo "1995"]
[TimeControl "180+1"]
[EndTime "15:23:26 PDT"]
[Termination "KVAIDAN won on time"]

1. f4 {[%clk 0:03:00]} 1... Nh6 {[%clk 0:02:58.9]} 2. Nf3 {[%clk 0:03:00.9]}
2... g6 {[%clk 0:02:57.6]} 3. e4 {[%clk 0:02:58.6]} 3... Bg7 {[%clk 0:02:57.8]}
4. d4 {[%clk 0:02:59]} 4... O-O {[%clk 0:02:57.9]} 5. Nc3 {[%clk 0:02:58.5]}
5... c6 {[%clk 0:02:57.2]} 6. f5 {[%clk 0:02:58.8]} 6... d5 {[%clk 0:02:47.9]}
7. Bxh6 {[%clk 0:02:57]} 7... Bxh6 {[%clk 0:02:47.4]} 8. fxg6 {[%clk 0:02:57.9]}
8... fxg6 {[%clk 0:02:42.1]} 9. Qd3 {[%clk 0:02:57.6]} 9... dxe4 {[%clk
0:02:35.9]} 10. Qxe4 {[%clk 0:02:57.6]} 10... Bf5 {[%clk 0:02:34]} 11. Bc4+
{[%clk 0:02:56.8]} 11... Kh8 {[%clk 0:02:32]} 12. Qh4 {[%clk 0:02:57]} 12... Be3
{[%clk 0:02:00.3]} 13. Ng5 {[%clk 0:02:51.3]} 13... Bxg5 {[%clk 0:01:58.8]} 14.
Qxg5 {[%clk 0:02:51.1]} 14... Qxd4 {[%clk 0:01:52.9]} 15. Be2 {[%clk 0:02:51.3]}
15... e5 {[%clk 0:01:32.7]} 16. Rd1 {[%clk 0:02:48.3]} 16... Qf4 {[%clk
0:01:23]} 17. Qe7 {[%clk 0:02:47.4]} 17... Nd7 {[%clk 0:01:15.2]} 18. Rf1 {[%clk
0:02:44.1]} 18... Qxh2 {[%clk 0:01:06.4]} 19. Rxd7 {[%clk 0:02:44.1]} 19... Qg3+
{[%clk 0:00:58.5]} 20. Kd1 {[%clk 0:02:44.3]} 20... g5 {[%clk 0:00:14.6]} 21.
Rxf5 {[%clk 0:02:41.6]} 1-0